[Event "*** Titled Tuesday Blitz"]
[Site "Chess.com"]
[Date "2021.02.09"]
[Round "9"]
[White "Alexander_Zubov"]
[Black "Onischuk_V"]
[Result "0-1"]
[WhiteElo "2969"]
[BlackElo "2850"]
[TimeControl "180+1"]
[EndTime "11:45:01 PST"]
[Termination "Onischuk_V won by resignation"]

1. d4 {[%clk 0:03:00.9]} 1... d6 {[%clk 0:03:00.4]} 2. Nf3 {[%clk 0:02:59]} 2...
g6 {[%clk 0:03:00.6]} 3. g3 {[%clk 0:02:59.3]} 3... Bg7 {[%clk 0:03:01]} 4. Bg2
{[%clk 0:02:59.9]} 4... Nf6 {[%clk 0:03:01.6]} 5. O-O {[%clk 0:03:00.5]} 5...
O-O {[%clk 0:03:02.3]} 6. c4 {[%clk 0:02:59]} 6... Nc6 {[%clk 0:03:02.3]} 7. Nc3
{[%clk 0:02:56.7]} 7... e5 {[%clk 0:03:02.7]} 8. d5 {[%clk 0:02:56.7]} 8... Nb8
{[%clk 0:03:02.4]} 9. e4 {[%clk 0:02:56.8]} 9... a5 {[%clk 0:02:57.9]} 10. Ne1
{[%clk 0:02:55.6]} 10... Na6 {[%clk 0:02:55.5]} 11. Nd3 {[%clk 0:02:55.4]} 11...
Nd7 {[%clk 0:02:55.7]} 12. Be3 {[%clk 0:02:53.4]} 12... f5 {[%clk 0:02:53.3]}
13. exf5 {[%clk 0:02:53.5]} 13... gxf5 {[%clk 0:02:52.7]} 14. f4 {[%clk
0:02:54]} 14... Nb6 {[%clk 0:02:52.2]} 15. Qb3 {[%clk 0:02:38.5]} 15... e4
{[%clk 0:02:51.2]} 16. c5 {[%clk 0:02:12.4]} 16... a4 {[%clk 0:02:20.1]} 17. Qb5
{[%clk 0:02:11.9]} 17... Bd7 {[%clk 0:02:15.9]} 18. c6 {[%clk 0:02:11.7]} 18...
bxc6 {[%clk 0:01:33.1]} 19. dxc6 {[%clk 0:02:10.7]} 19... Be6 {[%clk 0:01:32.9]}
20. Bxb6 {[%clk 0:02:01]} 20... cxb6 {[%clk 0:01:32.4]} 21. Nb4 {[%clk
0:01:51.8]} 21... Nc7 {[%clk 0:01:10]} 22. Qe2 {[%clk 0:01:46.2]} 22... a3
{[%clk 0:01:08]} 23. Rac1 {[%clk 0:00:57.9]} 23... axb2 {[%clk 0:01:06.5]} 24.
Qxb2 {[%clk 0:00:58]} 24... d5 {[%clk 0:01:06.5]} 25. a4 {[%clk 0:00:42.3]}
25... d4 {[%clk 0:01:05.8]} 26. Nb5 {[%clk 0:00:42.1]} 26... d3 {[%clk
0:01:05.9]} 27. Qd2 {[%clk 0:00:41]} 27... Rxa4 {[%clk 0:00:58.4]} 28. Nxc7
{[%clk 0:00:40.8]} 28... Qxc7 {[%clk 0:00:58.4]} 29. Kh1 {[%clk 0:00:34]} 29...
Qd6 {[%clk 0:00:55.8]} 30. Rb1 {[%clk 0:00:31.3]} 30... b5 {[%clk 0:00:50.2]}
31. g4 {[%clk 0:00:28.1]} 31... Qd4 {[%clk 0:00:43.2]} 32. gxf5 {[%clk
0:00:24.8]} 32... Bxf5 {[%clk 0:00:43]} 33. Rfe1 {[%clk 0:00:14.8]} 33... Re8
{[%clk 0:00:36]} 34. Re3 {[%clk 0:00:13.3]} 34... Rc8 {[%clk 0:00:23.1]} 35. Bh3
{[%clk 0:00:11.9]} 35... Bxh3 {[%clk 0:00:20.5]} 36. Rxh3 {[%clk 0:00:12.8]}
36... Ra1 {[%clk 0:00:18.3]} 37. Qd1 {[%clk 0:00:07]} 37... Rxb1 {[%clk
0:00:14.7]} 38. Qxb1 {[%clk 0:00:07.9]} 38... d2 {[%clk 0:00:15]} 39. Qd1 {[%clk
0:00:03.8]} 39... Qxb4 {[%clk 0:00:14.9]} 40. Kg2 {[%clk 0:00:03.3]} 40... Rxc6
{[%clk 0:00:13.2]} 41. Qg4 {[%clk 0:00:02.5]} 41... Rg6 {[%clk 0:00:13.2]} 0-1

[Event "*** Titled Tuesday Blitz"]
[Site "Chess.com"]
[Date "2021.02.09"]
[Round "9"]
[White "Kaponov"]
[Black "stasiek18"]
[Result "0-1"]
[WhiteElo "2207"]
[BlackElo "2369"]
[TimeControl "180+1"]
[EndTime "11:45:02 PST"]
[Termination "stasiek18 won on time"]

1. d4 {[%clk 0:03:00.9]} 1... Nf6 {[%clk 0:02:58.8]} 2. c4 {[%clk 0:03:01.1]}
2... g6 {[%clk 0:02:59]} 3. Nc3 {[%clk 0:03:00.6]} 3... d5 {[%clk 0:02:59.2]} 4.
cxd5 {[%clk 0:03:00.3]} 4... Nxd5 {[%clk 0:03:00.1]} 5. e4 {[%clk 0:02:59.3]}
5... Nxc3 {[%clk 0:03:00.2]} 6. bxc3 {[%clk 0:03:00.2]} 6... Bg7 {[%clk
0:03:00.9]} 7. Be3 {[%clk 0:02:58.6]} 7... c5 {[%clk 0:03:00.6]} 8. Qd2 {[%clk
0:02:57.7]} 8... Qa5 {[%clk 0:02:59.7]} 9. Rc1 {[%clk 0:02:55.2]} 9... O-O
{[%clk 0:02:40.8]} 10. d5 {[%clk 0:02:48.7]} 10... e6 {[%clk 0:01:50.6]} 11. c4
{[%clk 0:02:48.4]} 11... Qxd2+ {[%clk 0:01:45.8]} 12. Kxd2 {[%clk 0:02:48]}
12... b6 {[%clk 0:01:44.8]} 13. Bd3 {[%clk 0:02:46.1]} 13... f5 {[%clk
0:01:30.2]} 14. f3 {[%clk 0:02:39.6]} 14... f4 {[%clk 0:01:03.1]} 15. Bf2 {[%clk
0:02:38.7]} 15... Nd7 {[%clk 0:01:02.5]} 16. Ne2 {[%clk 0:02:19.7]} 16... Ne5
{[%clk 0:00:59.7]} 17. Bh4 {[%clk 0:02:20.1]} 17... h6 {[%clk 0:00:41.9]} 18.
Kc2 {[%clk 0:02:09.3]} 18... g5 {[%clk 0:00:41]} 19. Be1 {[%clk 0:02:09.2]}
19... Bd7 {[%clk 0:00:33.2]} 20. Bc3 {[%clk 0:01:57.6]} 20... Kf7 {[%clk
0:00:32.5]} 21. Rcf1 {[%clk 0:01:36.5]} 21... Rfb8 {[%clk 0:00:22]} 22. g3
{[%clk 0:01:35.6]} 22... Ba4+ {[%clk 0:00:12]} 23. Kd2 {[%clk 0:01:34.4]} 23...
fxg3 {[%clk 0:00:05.6]} 24. hxg3 {[%clk 0:01:34.7]} 24... Nxd3 {[%clk
0:00:05.4]} 25. Kxd3 {[%clk 0:01:34]} 25... b5 {[%clk 0:00:06.3]} 26. f4 {[%clk
0:01:14.3]} 26... bxc4+ {[%clk 0:00:05.8]} 27. Kxc4 {[%clk 0:01:13.3]} 27...
Bb5+ {[%clk 0:00:05.8]} 28. Kxc5 {[%clk 0:01:11.1]} 28... Bxe2 {[%clk
0:00:06.7]} 29. fxg5+ {[%clk 0:01:10.2]} 29... Bxf1 {[%clk 0:00:06.2]} 30. Rxf1+
{[%clk 0:01:10.6]} 30... Kg6 {[%clk 0:00:07.1]} 31. Bxg7 {[%clk 0:01:06]} 31...
Kxg7 {[%clk 0:00:08]} 32. dxe6 {[%clk 0:01:06.2]} 32... hxg5 {[%clk 0:00:07.1]}
33. Rf7+ {[%clk 0:01:03.6]} 33... Kg6 {[%clk 0:00:07.6]} 34. Kd6 {[%clk
0:01:04]} 34... Rb6+ {[%clk 0:00:06.7]} 35. Ke5 {[%clk 0:01:02.5]} 35... Re8
{[%clk 0:00:05.9]} 36. Rf6+ {[%clk 0:01:03]} 36... Kg7 {[%clk 0:00:06.3]} 37.
Kf5 {[%clk 0:01:03.6]} 37... Rb5+ {[%clk 0:00:05.8]} 38. e5 {[%clk 0:01:03.6]}
38... Rf8 {[%clk 0:00:06.1]} 0-1

[Event "*** Titled Tuesday Blitz"]
[Site "Chess.com"]
[Date "2021.02.09"]
[Round "9"]
[White "OriTaichman"]
[Black "wannabe2700"]
[Result "0-1"]
[WhiteElo "2538"]
[BlackElo "2757"]
[TimeControl "180+1"]
[EndTime "11:45:03 PST"]
[Termination "wannabe2700 won by resignation"]

1. e4 {[%clk 0:03:00.9]} 1... c6 {[%clk 0:02:28.3]} 2. d4 {[%clk 0:03:00.3]}
2... d5 {[%clk 0:02:29.2]} 3. e5 {[%clk 0:02:59.9]} 3... Bf5 {[%clk 0:02:29.1]}
4. Nd2 {[%clk 0:03:00.4]} 4... e6 {[%clk 0:02:29]} 5. Nb3 {[%clk 0:03:00.6]}
5... Nd7 {[%clk 0:02:26.8]} 6. Be3 {[%clk 0:03:01.2]} 6... b6 {[%clk 0:02:21.8]}
7. f4 {[%clk 0:03:00.8]} 7... c5 {[%clk 0:02:20.7]} 8. Nf3 {[%clk 0:03:00.8]}
8... h6 {[%clk 0:02:03.5]} 9. c4 {[%clk 0:02:51.5]} 9... cxd4 {[%clk 0:02:01.6]}
10. Nfxd4 {[%clk 0:02:47]} 10... Bb4+ {[%clk 0:02:02.2]} 11. Bd2 {[%clk
0:02:37]} 11... Bxd2+ {[%clk 0:02:02.1]} 12. Qxd2 {[%clk 0:02:37.6]} 12... dxc4
{[%clk 0:01:59.7]} 13. Nxf5 {[%clk 0:02:29.2]} 13... exf5 {[%clk 0:01:35.3]} 14.
Bxc4 {[%clk 0:02:28.4]} 14... Nc5 {[%clk 0:01:09.4]} 15. Nxc5 {[%clk 0:01:01.7]}
15... Qxd2+ {[%clk 0:01:05.7]} 16. Kxd2 {[%clk 0:01:02.6]} 16... bxc5 {[%clk
0:01:06.4]} 17. Rac1 {[%clk 0:01:00.4]} 17... Rb8 {[%clk 0:00:57.5]} 18. Rc2
{[%clk 0:00:57.7]} 18... Ne7 {[%clk 0:00:57.2]} 19. Bb3 {[%clk 0:00:52.1]} 19...
Rb4 {[%clk 0:00:52.9]} 20. g3 {[%clk 0:00:46.2]} 20... g5 {[%clk 0:00:52.8]} 21.
Rf1 {[%clk 0:00:30]} 21... Rg8 {[%clk 0:00:52.6]} 22. Rxc5 {[%clk 0:00:24.7]}
22... gxf4 {[%clk 0:00:52.8]} 23. Kc3 {[%clk 0:00:19.6]} 23... Re4 {[%clk
0:00:48.7]} 24. Rxf4 {[%clk 0:00:19.3]} 24... Rxf4 {[%clk 0:00:37.2]} 25. gxf4
{[%clk 0:00:20.2]} 25... Rg4 {[%clk 0:00:34.7]} 26. Rc7 {[%clk 0:00:19.5]} 26...
Rxf4 {[%clk 0:00:34.2]} 27. Rxa7 {[%clk 0:00:19.7]} 27... Re4 {[%clk 0:00:29.7]}
28. a4 {[%clk 0:00:18.5]} 28... f4 {[%clk 0:00:28]} 29. a5 {[%clk 0:00:15.3]}
29... f3 {[%clk 0:00:27.9]} 30. Ra6 {[%clk 0:00:05.5]} 30... Rxe5 {[%clk
0:00:25.6]} 31. Rf6 {[%clk 0:00:05.2]} 31... Nf5 {[%clk 0:00:22.5]} 32. Rxf5
{[%clk 0:00:02.2]} 32... Rxf5 {[%clk 0:00:22.2]} 33. Ba4+ {[%clk 0:00:03.1]}
33... Ke7 {[%clk 0:00:22.1]} 34. a6 {[%clk 0:00:03.5]} 34... f2 {[%clk
0:00:21.4]} 35. a7 {[%clk 0:00:03.3]} 35... Ra5 {[%clk 0:00:16.9]} 36. Bb5
{[%clk 0:00:04]} 36... Rxa7 {[%clk 0:00:16.6]} 37. Bf1 {[%clk 0:00:04.1]} 37...
Ra1 {[%clk 0:00:16.7]} 38. Kd2 {[%clk 0:00:04.7]} 38... Rxf1 {[%clk 0:00:16.3]}
39. Ke2 {[%clk 0:00:05.6]} 39... Rh1 {[%clk 0:00:16.8]} 40. Kxf2 {[%clk
0:00:06.5]} 40... Rxh2+ {[%clk 0:00:17.3]} 41. Kg3 {[%clk 0:00:07.4]} 41... Rxb2
{[%clk 0:00:18.1]} 42. Kg4 {[%clk 0:00:08.2]} 42... Rb5 {[%clk 0:00:18.3]} 43.
Kf4 {[%clk 0:00:08.4]} 43... Rg5 {[%clk 0:00:18.8]} 44. Ke4 {[%clk 0:00:08.6]}
44... Kf6 {[%clk 0:00:19.6]} 45. Kf4 {[%clk 0:00:09.2]} 45... Kg6 {[%clk
0:00:19.5]} 46. Ke4 {[%clk 0:00:09.7]} 46... h5 {[%clk 0:00:20.4]} 47. Kf4
{[%clk 0:00:10.6]} 47... h4 {[%clk 0:00:21.3]} 48. Ke3 {[%clk 0:00:10.9]} 48...
h3 {[%clk 0:00:22.2]} 49. Kf4 {[%clk 0:00:11.4]} 49... h2 {[%clk 0:00:23.1]} 50.
Ke3 {[%clk 0:00:12]} 50... h1=Q {[%clk 0:00:24]} 51. Kf4 {[%clk 0:00:12.9]}
51... Qh4+ {[%clk 0:00:24.9]} 0-1

[Event "*** Titled Tuesday Blitz"]
[Site "Chess.com"]
[Date "2021.02.09"]
[Round "9"]
[White "sokidze"]
[Black "frederiksvane"]
[Result "1-0"]
[WhiteElo "2537"]
[BlackElo "2707"]
[TimeControl "180+1"]
[EndTime "11:45:04 PST"]
[Termination "sokidze won by checkmate"]

1. d4 {[%clk 0:03:00.9]} 1... d6 {[%clk 0:02:55.2]} 2. e4 {[%clk 0:03:00.5]}
2... Nf6 {[%clk 0:02:53.8]} 3. Nc3 {[%clk 0:03:01]} 3... g6 {[%clk 0:02:53.9]}
4. g3 {[%clk 0:03:01.6]} 4... Bg7 {[%clk 0:02:54]} 5. Bg2 {[%clk 0:03:02.2]}
5... O-O {[%clk 0:02:54.4]} 6. Nge2 {[%clk 0:03:02.9]} 6... e5 {[%clk
0:02:52.7]} 7. h3 {[%clk 0:03:02.5]} 7... Nc6 {[%clk 0:02:50.1]} 8. Be3 {[%clk
0:03:02.1]} 8... Re8 {[%clk 0:02:42.5]} 9. O-O {[%clk 0:03:01]} 9... exd4 {[%clk
0:02:42.6]} 10. Nxd4 {[%clk 0:03:01.9]} 10... Bd7 {[%clk 0:02:40.5]} 11. Re1
{[%clk 0:02:57.7]} 11... Qc8 {[%clk 0:02:31.4]} 12. Kh2 {[%clk 0:02:56.3]} 12...
h5 {[%clk 0:02:24.1]} 13. Nxc6 {[%clk 0:02:32.7]} 13... bxc6 {[%clk 0:02:21.2]}
14. Qd2 {[%clk 0:02:26.4]} 14... Rb8 {[%clk 0:02:18]} 15. Rab1 {[%clk
0:02:25.6]} 15... c5 {[%clk 0:02:11.9]} 16. Bg5 {[%clk 0:02:20.8]} 16... Bc6
{[%clk 0:02:08.1]} 17. b3 {[%clk 0:02:05.8]} 17... Nh7 {[%clk 0:01:58.8]} 18.
Bf4 {[%clk 0:01:59.1]} 18... Rb4 {[%clk 0:01:46.3]} 19. Nd5 {[%clk 0:01:34.3]}
19... Bxd5 {[%clk 0:01:35.9]} 20. exd5 {[%clk 0:01:34.2]} 20... Nf6 {[%clk
0:01:30]} 21. Qd3 {[%clk 0:01:12.6]} 21... a6 {[%clk 0:01:17.3]} 22. c3 {[%clk
0:01:11.8]} 22... Rb8 {[%clk 0:01:16.2]} 23. Rxe8+ {[%clk 0:01:03.5]} 23... Qxe8
{[%clk 0:01:17.1]} 24. Rb2 {[%clk 0:00:56]} 24... Qe1 {[%clk 0:01:10.9]} 25. Re2
{[%clk 0:00:53.5]} 25... Qa1 {[%clk 0:01:10.5]} 26. Qc2 {[%clk 0:00:39.3]} 26...
Kf8 {[%clk 0:00:59]} 27. Bc1 {[%clk 0:00:24.2]} 27... Nd7 {[%clk 0:00:56.1]} 28.
Bd2 {[%clk 0:00:15.8]} 28... Bf6 {[%clk 0:00:51.6]} 29. Re1 {[%clk 0:00:15.2]}
29... Kg7 {[%clk 0:00:50.9]} 30. Rxa1 {[%clk 0:00:14.8]} 30... a5 {[%clk
0:00:47.4]} 31. Re1 {[%clk 0:00:14.5]} 31... c4 {[%clk 0:00:43.1]} 32. b4 {[%clk
0:00:12.7]} 32... Ra8 {[%clk 0:00:32.4]} 33. Re4 {[%clk 0:00:11]} 33... Nb6
{[%clk 0:00:31.3]} 34. Be3 {[%clk 0:00:07.5]} 34... axb4 {[%clk 0:00:30.7]} 35.
cxb4 {[%clk 0:00:08.4]} 35... Nxd5 {[%clk 0:00:31]} 36. Rxc4 {[%clk 0:00:08.5]}
36... Nxe3 {[%clk 0:00:31.4]} 37. fxe3 {[%clk 0:00:09.4]} 37... Ra3 {[%clk
0:00:31.5]} 38. Rxc7 {[%clk 0:00:07.9]} 38... Rxe3 {[%clk 0:00:32.1]} 39. Qc4
{[%clk 0:00:08]} 39... Be5 {[%clk 0:00:22.9]} 40. Qxf7+ {[%clk 0:00:07.9]} 40...
Kh6 {[%clk 0:00:23.3]} 41. Qh7+ {[%clk 0:00:08.2]} 41... Kg5 {[%clk 0:00:23.9]}
42. h4+ {[%clk 0:00:08.6]} 42... Kf5 {[%clk 0:00:23.3]} 43. Qf7+ {[%clk
0:00:08.8]} 43... Bf6 {[%clk 0:00:22.5]} 44. Qd5+ {[%clk 0:00:04.6]} 44... Re5
{[%clk 0:00:22.5]} 45. Qf3+ {[%clk 0:00:04.3]} 45... Ke6 {[%clk 0:00:23.4]} 46.
Bh3+ {[%clk 0:00:03.9]} 46... Rf5 {[%clk 0:00:21.4]} 47. Bxf5+ {[%clk
0:00:04.3]} 47... gxf5 {[%clk 0:00:22.3]} 48. Qxh5 {[%clk 0:00:04.7]} 48... Be5
{[%clk 0:00:23.2]} 49. Qf7# {[%clk 0:00:04.8]} 1-0

[Event "*** Titled Tuesday Blitz"]
[Site "Chess.com"]
[Date "2021.02.09"]
[Round "9"]
[White "exoticprincess"]
[Black "Azerichess"]
[Result "1/2-1/2"]
[WhiteElo "2859"]
[BlackElo "2979"]
[TimeControl "180+1"]
[EndTime "11:45:05 PST"]
[Termination "Game drawn by repetition"]

1. d4 {[%clk 0:03:00.9]} 1... d5 {[%clk 0:02:55.8]} 2. Nc3 {[%clk 0:03:00.1]}
2... c6 {[%clk 0:02:49.7]} 3. Bf4 {[%clk 0:02:59.8]} 3... Bf5 {[%clk 0:02:45.5]}
4. f3 {[%clk 0:02:59.3]} 4... e6 {[%clk 0:02:45.4]} 5. e3 {[%clk 0:02:59.6]}
5... h6 {[%clk 0:02:37.3]} 6. g4 {[%clk 0:02:58.9]} 6... Bh7 {[%clk 0:02:37]} 7.
Bd3 {[%clk 0:02:58.6]} 7... Bxd3 {[%clk 0:02:36]} 8. Qxd3 {[%clk 0:02:59.5]}
8... Bd6 {[%clk 0:02:35.9]} 9. Nge2 {[%clk 0:02:59]} 9... Ne7 {[%clk 0:02:31.9]}
10. O-O-O {[%clk 0:02:58.2]} 10... Na6 {[%clk 0:02:22.4]} 11. Kb1 {[%clk
0:02:56]} 11... Qc7 {[%clk 0:02:18]} 12. Bxd6 {[%clk 0:02:42.3]} 12... Qxd6
{[%clk 0:02:18.9]} 13. e4 {[%clk 0:02:43.1]} 13... O-O-O {[%clk 0:02:09.6]} 14.
Qe3 {[%clk 0:02:39.1]} 14... Kb8 {[%clk 0:02:08.2]} 15. a3 {[%clk 0:02:37.8]}
15... Nc7 {[%clk 0:02:01.1]} 16. h4 {[%clk 0:02:37.7]} 16... h5 {[%clk
0:01:55.8]} 17. g5 {[%clk 0:02:37]} 17... Ng6 {[%clk 0:01:49]} 18. e5 {[%clk
0:02:22.3]} 18... Qd7 {[%clk 0:01:47.4]} 19. Nf4 {[%clk 0:02:15.8]} 19... Ne7
{[%clk 0:01:47.1]} 20. Nd3 {[%clk 0:02:11.6]} 20... Nf5 {[%clk 0:01:46.7]} 21.
Qf2 {[%clk 0:02:11.5]} 21... Na6 {[%clk 0:01:43]} 22. Ne2 {[%clk 0:02:10.5]}
22... b6 {[%clk 0:01:41.1]} 23. Ng3 {[%clk 0:02:09.9]} 23... Nxg3 {[%clk
0:01:39.2]} 24. Qxg3 {[%clk 0:02:10.8]} 24... c5 {[%clk 0:01:38.1]} 25. g6
{[%clk 0:02:07.4]} 25... cxd4 {[%clk 0:01:29.3]} 26. Nf4 {[%clk 0:02:00.4]}
26... Rc8 {[%clk 0:01:15.3]} 27. Rxd4 {[%clk 0:01:58.9]} 27... Rc6 {[%clk
0:01:14.5]} 28. Rh2 {[%clk 0:01:57.8]} 28... Nc7 {[%clk 0:01:11.6]} 29. Rg2
{[%clk 0:01:50]} 29... Rf8 {[%clk 0:00:53.2]} 30. Nxh5 {[%clk 0:01:42.5]} 30...
fxg6 {[%clk 0:00:52.8]} 31. Nf4 {[%clk 0:01:42.2]} 31... Nb5 {[%clk 0:00:47.3]}
32. Rd3 {[%clk 0:01:39.1]} 32... d4 {[%clk 0:00:46.4]} 33. Nxg6 {[%clk
0:01:36.2]} 33... Rfc8 {[%clk 0:00:44.6]} 34. Qg5 {[%clk 0:01:27.2]} 34... R8c7
{[%clk 0:00:26.5]} 35. a4 {[%clk 0:01:18.6]} 35... Nc3+ {[%clk 0:00:22.7]} 36.
bxc3 {[%clk 0:01:19.5]} 36... Rxc3 {[%clk 0:00:23.3]} 37. Nf4 {[%clk 0:00:36.4]}
37... Qxa4 {[%clk 0:00:19.8]} 38. Qd8+ {[%clk 0:00:33.5]} 38... Kb7 {[%clk
0:00:19.2]} 39. Rxc3 {[%clk 0:00:21.5]} 39... dxc3 {[%clk 0:00:16.2]} 40. Nd3
{[%clk 0:00:20.6]} 40... Qb5+ {[%clk 0:00:15.7]} 41. Kc1 {[%clk 0:00:20.6]}
41... Rd7 {[%clk 0:00:15.3]} 42. Qe8 {[%clk 0:00:18.5]} 42... Qa4 {[%clk
0:00:15.6]} 43. Kb1 {[%clk 0:00:14]} 43... Qb5+ {[%clk 0:00:15.5]} 44. Kc1
{[%clk 0:00:14.3]} 44... Qa4 {[%clk 0:00:15.1]} 45. Kb1 {[%clk 0:00:12]} 45...
Qb5+ {[%clk 0:00:12.1]} 46. Kc1 {[%clk 0:00:12.3]} 1/2-1/2

[Event "*** Titled Tuesday Blitz"]
[Site "Chess.com"]
[Date "2021.02.09"]
[Round "9"]
[White "Dii210"]
[Black "Grandmaster2B"]
[Result "1-0"]
[WhiteElo "2345"]
[BlackElo "2520"]
[TimeControl "180+1"]
[EndTime "11:45:05 PST"]
[Termination "Dii210 won by resignation"]

1. e4 {[%clk 0:03:00.9]} 1... c5 {[%clk 0:03:00.1]} 2. Nf3 {[%clk 0:02:57.6]}
2... d6 {[%clk 0:02:59.9]} 3. d4 {[%clk 0:02:57]} 3... cxd4 {[%clk 0:03:00.8]}
4. Nxd4 {[%clk 0:02:57.9]} 4... Nf6 {[%clk 0:03:01.4]} 5. Nc3 {[%clk 0:02:58.1]}
5... a6 {[%clk 0:03:02]} 6. Bg5 {[%clk 0:02:57.6]} 6... Nbd7 {[%clk 0:03:02]} 7.
f4 {[%clk 0:02:53.7]} 7... Qc7 {[%clk 0:03:00.3]} 8. Qe2 {[%clk 0:02:51.4]} 8...
e5 {[%clk 0:02:59.6]} 9. Nf5 {[%clk 0:02:49.7]} 9... h6 {[%clk 0:02:59.5]} 10.
Bxf6 {[%clk 0:02:42.7]} 10... Nxf6 {[%clk 0:03:00.4]} 11. O-O-O {[%clk
0:02:42.9]} 11... exf4 {[%clk 0:02:52.3]} 12. Nd5 {[%clk 0:02:36.4]} 12... Nxd5
{[%clk 0:02:52.2]} 13. exd5+ {[%clk 0:02:36.2]} 13... Kd8 {[%clk 0:02:52.8]} 14.
Qe4 {[%clk 0:02:28.1]} 14... g6 {[%clk 0:02:33.3]} 15. Nd4 {[%clk 0:02:27.2]}
15... Bg7 {[%clk 0:02:28.1]} 16. Qxf4 {[%clk 0:02:25.6]} 16... Be5 {[%clk
0:02:20.6]} 17. Qh4+ {[%clk 0:02:24.9]} 17... Qe7 {[%clk 0:02:18.7]} 18. Qf2
{[%clk 0:02:16.1]} 18... Bd7 {[%clk 0:02:11.8]} 19. Nf3 {[%clk 0:02:14.9]} 19...
Kc7 {[%clk 0:01:43.6]} 20. Nxe5 {[%clk 0:01:57.6]} 20... Qxe5 {[%clk 0:01:44.1]}
21. Qxf7 {[%clk 0:01:41.8]} 21... Raf8 {[%clk 0:01:23.3]} 22. Qxg6 {[%clk
0:01:40.6]} 22... Bf5 {[%clk 0:01:20.3]} 23. Qg3 {[%clk 0:01:35.4]} 23... Qxg3
{[%clk 0:01:17.9]} 24. hxg3 {[%clk 0:01:35.4]} 24... Bg4 {[%clk 0:01:13]} 25.
Rd2 {[%clk 0:01:30.5]} 25... Re8 {[%clk 0:00:57.5]} 26. Bd3 {[%clk 0:01:28.4]}
26... Re3 {[%clk 0:00:55.6]} 27. Rf2 {[%clk 0:01:18.7]} 27... Rxg3 {[%clk
0:00:53.7]} 28. Re1 {[%clk 0:01:18.6]} 28... Rd8 {[%clk 0:00:44.1]} 29. Kd2
{[%clk 0:01:09.8]} 29... h5 {[%clk 0:00:33.4]} 30. c4 {[%clk 0:00:54.1]} 30...
h4 {[%clk 0:00:30.5]} 31. Re3 {[%clk 0:00:50.2]} 31... Bd7 {[%clk 0:00:14.8]}
32. Rxg3 {[%clk 0:00:47.5]} 32... hxg3 {[%clk 0:00:15.7]} 33. Rf3 {[%clk
0:00:47.4]} 33... Rg8 {[%clk 0:00:15.8]} 34. Rf7 {[%clk 0:00:46]} 34... Kd8
{[%clk 0:00:15.6]} 35. Bf5 {[%clk 0:00:43.9]} 35... Be8 {[%clk 0:00:12.5]} 36.
Rxb7 {[%clk 0:00:42.6]} 36... Rf8 {[%clk 0:00:12.4]} 37. Bh3 {[%clk 0:00:39.6]}
37... Rf4 {[%clk 0:00:10]} 38. Kc3 {[%clk 0:00:36.1]} 38... Bh5 {[%clk 0:00:10]}
39. Rg7 {[%clk 0:00:35.1]} 39... Be2 {[%clk 0:00:07.8]} 40. b3 {[%clk
0:00:34.8]} 40... Rf2 {[%clk 0:00:06.1]} 41. Rxg3 {[%clk 0:00:34.8]} 41... Bf1
{[%clk 0:00:06.6]} 42. Rg8+ {[%clk 0:00:30.9]} 42... Kc7 {[%clk 0:00:05.7]} 43.
Rg7+ {[%clk 0:00:29.9]} 43... Kb6 {[%clk 0:00:05.8]} 44. Rd7 {[%clk 0:00:28.1]}
44... Bxg2 {[%clk 0:00:02.2]} 45. Bxg2 {[%clk 0:00:27.1]} 45... Rxg2 {[%clk
0:00:03.1]} 46. Rxd6+ {[%clk 0:00:27.4]} 46... Kb7 {[%clk 0:00:03.8]} 47. a4
{[%clk 0:00:26]} 47... Rg3+ {[%clk 0:00:01.9]} 48. Kb4 {[%clk 0:00:26.1]} 48...
a5+ {[%clk 0:00:02.7]} 49. Ka3 {[%clk 0:00:25.4]} 49... Rxb3+ {[%clk 0:00:03.6]}
1-0

[Event "*** Titled Tuesday Blitz"]
[Site "Chess.com"]
[Date "2021.02.09"]
[Round "9"]
[White "youngKID"]
[Black "ckgchess"]
[Result "1-0"]
[WhiteElo "2851"]
[BlackElo "2725"]
[TimeControl "180+1"]
[EndTime "11:45:07 PST"]
[Termination "youngKID won on time"]

1. e4 {[%clk 0:03:00.9]} 1... c5 {[%clk 0:02:59.6]} 2. Nf3 {[%clk 0:03:00.7]}
2... d6 {[%clk 0:03:00]} 3. Bb5+ {[%clk 0:02:59.7]} 3... Nd7 {[%clk 0:03:00]} 4.
O-O {[%clk 0:02:59.8]} 4... a6 {[%clk 0:02:59.2]} 5. Bd3 {[%clk 0:02:56.7]} 5...
Ngf6 {[%clk 0:02:57.5]} 6. Re1 {[%clk 0:02:53.6]} 6... e6 {[%clk 0:02:57.7]} 7.
c3 {[%clk 0:02:52.7]} 7... Be7 {[%clk 0:02:51.8]} 8. Bc2 {[%clk 0:02:52.8]} 8...
b5 {[%clk 0:02:50.9]} 9. d4 {[%clk 0:02:52]} 9... Bb7 {[%clk 0:02:50.8]} 10.
Nbd2 {[%clk 0:02:50.6]} 10... O-O {[%clk 0:02:50.4]} 11. Nf1 {[%clk 0:02:47.5]}
11... Qc7 {[%clk 0:02:47.4]} 12. Ng3 {[%clk 0:02:47.2]} 12... Rfc8 {[%clk
0:02:34.7]} 13. Bd3 {[%clk 0:02:34.7]} 13... h6 {[%clk 0:02:06.1]} 14. Qe2
{[%clk 0:02:24.1]} 14... Rab8 {[%clk 0:01:40.5]} 15. h3 {[%clk 0:02:12.3]} 15...
Ba8 {[%clk 0:01:20.2]} 16. Bf4 {[%clk 0:01:43.9]} 16... e5 {[%clk 0:00:59.5]}
17. Be3 {[%clk 0:01:34.7]} 17... exd4 {[%clk 0:00:54.7]} 18. cxd4 {[%clk
0:01:34.4]} 18... Bf8 {[%clk 0:00:51.1]} 19. Rac1 {[%clk 0:01:29.6]} 19... Re8
{[%clk 0:00:51.3]} 20. Bf4 {[%clk 0:01:25.9]} 20... c4 {[%clk 0:00:32.8]} 21.
Bb1 {[%clk 0:01:19.4]} 21... Rbc8 {[%clk 0:00:29.2]} 22. Qd2 {[%clk 0:01:11.6]}
22... Qa7 {[%clk 0:00:20.1]} 23. d5 {[%clk 0:00:55.2]} 23... Nc5 {[%clk
0:00:16.3]} 24. Be3 {[%clk 0:00:55.3]} 24... Qb8 {[%clk 0:00:14.9]} 25. Bd4
{[%clk 0:00:55.4]} 25... Nfd7 {[%clk 0:00:11.9]} 26. Re3 {[%clk 0:00:31]} 26...
Ne5 {[%clk 0:00:11.7]} 27. Ne1 {[%clk 0:00:31.3]} 27... Ng6 {[%clk 0:00:09.4]}
28. Nf5 {[%clk 0:00:29]} 28... Nd7 {[%clk 0:00:06.8]} 29. Nf3 {[%clk 0:00:15.8]}
29... Nde5 {[%clk 0:00:05.9]} 30. Nh2 {[%clk 0:00:12.1]} 30... Nf4 {[%clk
0:00:04.7]} 31. h4 {[%clk 0:00:05.8]} 31... Nfd3 {[%clk 0:00:02.9]} 32. Rf1
{[%clk 0:00:05.4]} 32... g6 {[%clk 0:00:01.9]} 33. f4 {[%clk 0:00:05.4]} 33...
gxf5 {[%clk 0:00:01.6]} 34. fxe5 {[%clk 0:00:05.3]} 34... dxe5 {[%clk
0:00:02.5]} 35. Rg3+ {[%clk 0:00:04.3]} 35... Kh7 {[%clk 0:00:03.2]} 36. Rxf5
{[%clk 0:00:04.2]} 36... Re7 {[%clk 0:00:01.4]} 37. Be3 {[%clk 0:00:03.7]} 37...
Rd7 {[%clk 0:00:01.5]} 38. Ng4 {[%clk 0:00:02.9]} 1-0